bitfinex-derivatives/quotes_SOLF0:USTF0_20250703
["timestamp","ask_amount","ask_price","bid_price","bid_amount"]
[1751546463232,9.04916306,152.9,152.83,58.82]
[1751546463438,9.68331557,152.88,152.83,58.82]
[1751546463631,9.04916306,152.87,152.83,58.82]
[1751546463941,9.04916306,152.86,152.83,58.82]
[1751546464233,6.5397,152.86,152.83,58.82]
[1751546464432,4.7026486,152.85,152.83,58.82]
[1751546464644,9.06208014,152.89,152.83,58.82]
[1751546464933,9.07568262,152.88,152.83,58.82]
[1751546465129,4.70477859,152.87,152.83,58.82]
[1751546465329,4.70618004,152.86,152.83,58.82]
[1751546465526,9.68331557,152.91,152.83,58.82]
[1751546465725,9.07832946,152.9,152.85,6.54]
[1751546465926,6.539,152.88,152.85,6.54]
[1751546466140,9.07832946,152.87,152.86,6.5392]
[1751546466434,9.07832946,152.91,152.86,226.36]
[1751546466636,12.01281557,152.94,152.8,8.09957953]
[1751546466637,9.07832946,152.9,152.8,8.09957953]
[1751546466838,6.54,152.86,152.81,285.18]
[1751546467039,18.76164503,152.88,152.81,58.82]
[1751546467239,4.70617731,152.87,152.81,285.16]
[1751546467437,9.68331557,152.89,152.81,285.16]
[1751546467625,9.12190388,152.88,152.83,6.5409]
[1751546467826,4.70617731,152.87,152.83,6.5409]
[1751546468131,9.12190221,152.88,152.83,6.5406]
[1751546468331,18.80486585,152.88,152.81,285.16]
[1751546468534,9.68331557,152.86,152.81,58.82]
[1751546469026,6.5406,152.84,152.81,58.82]
[1751546469231,9.68331557,152.86,152.81,58.82]
[1751546469437,9.68331557,152.88,152.81,58.82]
[1751546469632,18.82866914,152.9,152.81,58.82]
[1751546469831,9.14535357,152.89,152.81,58.82]
[1751546470129,9.14535357,152.88,152.82,6.08114522]
[1751546470329,9.14535357,152.89,152.83,242.08446079]
[1751546470532,6.5381,152.9,152.83,242.08446079]
[1751546470741,4.41506968,152.9,152.85,15.76446079]
[1751546470929,11.4142746,152.95,152.86,4.5664]
[1751546471129,4.41506968,152.94,152.87,58.82]
[1751546471334,4.41506968,152.93,152.88,226.3]
[1751546471539,10.95236968,152.92,152.88,226.3]
[1751546471743,4.41506968,152.91,152.88,226.3]
[1751546471940,9.68331557,152.91,152.87,58.82]
[1751546472242,9.68331557,152.89,152.84,6.08114522]
[1751546472439,9.68331557,152.89,152.8,8.09957953]
[1751546472440,9.68331557,152.85,152.8,6.08114522]
[1751546472633,4.41506968,152.87,152.8,6.08114522]
[1751546472836,6.7868,152.88,152.78,64.90114522]
[1751546472837,9.68331557,152.83,152.78,64.90114522]
[1751546473038,9.68331557,152.83,152.78,71.44394522]
[1751546473335,6.5423,152.8,152.78,58.82]
[1751546473743,6.5419,152.81,152.78,58.82]
[1751546474137,9.68331557,152.83,152.78,58.82]
[1751546474332,6.7868,152.88,152.78,58.82]
[1751546474540,2.2769,152.88,152.78,68.50331557]
[1751546474936,11.96021557,152.88,152.78,68.50331557]
[1751546475439,9.68331557,152.86,152.78,58.82]
[1751546475638,9.68331557,152.84,152.78,58.82]
[1751546475843,6.5422,152.8,152.78,58.82]
[1751546476037,9.68331557,152.82,152.78,58.82]
[1751546476436,6.5424,152.8,152.78,58.82]
[1751546476842,9.68331557,152.82,152.78,58.82]
[1751546477442,6.542,152.81,152.78,65.3628]
[1751546477742,9.68331557,152.84,152.78,58.82]
[1751546477940,9.68331557,152.86,152.79,6.5424]
[1751546478141,9.68331557,152.86,152.78,58.82]
[1751546478540,11.96021557,152.88,152.78,58.82]
[1751546479044,6.5409,152.84,152.8,6.5419]
[1751546479342,9.68331557,152.88,152.8,226.24]
[1751546479546,6.5399,152.86,152.82,6.5412]
[1751546479744,2.3753,152.91,152.81,2.3111]
[1751546479944,16.51078408,152.91,152.81,14.17541557]
[1751546480134,6.539,152.88,152.82,2.2172]
[1751546480339,4.45216851,152.91,152.82,11.90051557]
[1751546480750,4.45216851,152.91,152.83,9.68331557]
[1751546480944,9.68331557,152.93,152.84,58.72]
[1751546481142,6.5382,152.9,152.87,6.5391]
[1751546481340,12.05091557,152.94,152.85,226.2]
[1751546481745,9.68331557,152.94,152.85,226.2]
[1751546481942,9.68331557,152.95,152.85,235.88331557]
[1751546482143,12.05091557,152.96,152.85,801.12331557]
[1751546482337,6.5362,152.94,152.9,6.5375]
[1751546482544,4.3714,152.99,152.9,58.72]
[1751546482845,9.68331557,152.98,152.9,58.72]
[1751546483045,6.5367,152.93,152.9,58.72]
[1751546483353,4.31075095,152.96,152.9,58.72]
[1751546483553,6.58538868,152.97,152.9,58.72]
[1751546483749,4.31075095,152.96,152.9,58.72]
[1751546484051,13.99406652,152.96,152.9,284.86]
[1751546484250,6.58538868,152.95,152.9,284.86]
[1751546484550,6.58538868,152.97,152.9,284.86]
[1751546484754,4.31075095,152.96,152.9,284.86]
[1751546484942,4.31075095,152.95,152.9,284.86]
[1751546485150,6.58538868,152.95,152.9,284.86]
[1751546485650,9.68331557,152.96,152.9,284.86]
[1751546485853,4.31075095,152.95,152.9,284.86]
[1751546486044,9.68331557,152.93,152.88,2.2365]
[1751546486450,16.26870425,152.93,152.88,2.2365]
[1751546486658,6.739,152.99,152.87,58.72]
[1751546486659,16.26870425,152.92,152.87,58.72]
[1751546486849,9.68331557,152.9,152.87,58.72]
[1751546487049,9.68331557,152.89,152.87,58.72]
[1751546487245,11.9579533,152.89,152.83,8.912]
[1751546487447,6.58538868,152.94,152.83,2.3714]
[1751546487651,58.72,152.96,152.83,2.3714]
[1751546487652,9.68331557,152.89,152.83,2.3714]
[1751546488353,6.5394,152.87,152.83,2.3714]
[1751546488654,9.68331557,152.91,152.83,2.3714]
[1751546488855,9.68331557,152.91,152.85,6.5398]
[1751546489058,9.68331557,152.93,152.83,2.3714]
[1751546489257,16.32371207,152.93,152.83,8.46475738]
[1751546489461,6.5387,152.89,152.83,8.46475738]
[1751546489645,6.6403965,152.92,152.83,8.46475738]
[1751546489850,2.37735556,152.92,152.83,8.46475738]
[1751546490055,6.5386,152.89,152.83,8.46475738]
[1751546490358,6.6403965,152.92,152.83,8.46560883]
[1751546490653,6.6403965,152.92,152.84,6.09420883]
[1751546490858,9.68331557,152.91,152.83,2.3714]
[1751546491054,6.6403965,152.95,152.86,6.5396]
[1751546491256,9.68331557,152.92,152.83,2.3714]
[1751546491953,6.6403965,152.93,152.83,8.46560883]
[1751546492155,9.68331557,152.94,152.83,8.46560883]
[1751546492350,9.68331557,152.92,152.83,8.46560883]
[1751546492551,6.6403965,152.95,152.83,2.3714]
[1751546492747,9.68331557,152.9,152.83,2.3714]
[1751546492953,9.68331557,152.9,152.82,60.9372]
[1751546493357,6.5403,152.85,152.82,67.4783]
[1751546493651,9.68331557,152.9,152.82,60.9372]
[1751546493848,6.5413,152.82,152.81,6.09420883]
[1751546494069,9.68331557,152.82,152.78,6.09420883]
[1751546494248,9.68331557,152.82,152.77,6.09420883]
[1751546494457,9.68331557,152.8,152.76,6.09420883]
[1751546494659,9.68331557,152.78,152.75,6.09420883]
[1751546494958,6.5443,152.75,152.74,58.72]
[1751546496159,9.68331557,152.76,152.69,58.72]
[1751546496359,9.68331557,152.72,152.69,58.72]
[1751546496857,9.68331557,152.79,152.65,6.09420883]
[1751546496858,6.672,152.78,152.65,6.09420883]
[1751546497054,9.68331557,152.76,152.65,15.7775244]
[1751546497256,6.5443,152.76,152.67,9.68331557]
[1751546497460,2.1495,152.78,152.68,60.9463]
[1751546497758,6.5446,152.75,152.71,6.5457]
[1751546498165,9.68331557,152.79,152.7,225.86]
[1751546498355,9.68331557,152.75,152.7,225.86]
[1751546498555,9.68331557,152.75,152.68,60.9463]
[1751546498859,6.5469,152.69,152.68,58.72]
[1751546499059,9.68331557,152.71,152.68,58.72]
[1751546499268,9.68331557,152.69,152.63,63.181]
[1751546499455,6.548,152.67,152.63,60.8997]
[1751546499961,6.5481,152.67,152.63,67.449]
[1751546500362,9.68331557,152.69,152.63,60.8997]
[1751546500666,9.68331557,152.67,152.63,58.74]
[1751546501158,9.68331557,152.69,152.63,58.74]
[1751546501464,6.5481,152.67,152.63,65.2892]
[1751546501763,9.68331557,152.69,152.63,58.74]
[1751546503565,9.68331557,152.71,152.63,58.74]
[1751546504161,9.68331557,152.69,152.63,58.74]
[1751546504669,9.68331557,152.67,152.63,58.74]
[1751546504861,6.549,152.64,152.63,58.74]
[1751546505364,9.68331557,152.65,152.59,2.2813]
[1751546505556,4.4507,152.73,152.59,2.2813]
[1751546505860,6.5491,152.64,152.59,8.8321]
[1751546506059,9.68331557,152.66,152.59,8.8321]
[1751546506467,9.68331557,152.66,152.59,2.2813]
[1751546506965,9.68331557,152.67,152.59,2.2813]
[1751546507356,9.68331557,152.69,152.59,2.2813]
[1751546507759,9.68331557,152.67,152.59,2.2813]
[1751546508057,9.68331557,152.65,152.59,2.2813]
[1751546508665,9.68331557,152.63,152.5,9.68331557]
[1751546508864,9.68331557,152.61,152.54,58.78]
[1751546509066,9.68331557,152.59,152.54,58.78]
[1751546510160,6.5523,152.57,152.54,65.3333]
[1751546510462,9.68331557,152.59,152.54,58.78]
[1751546510661,6.5529,152.55,152.54,58.78]
[1751546510863,9.68331557,152.57,152.51,2.2681]
[1751546511162,6.554,152.53,152.51,2.2681]
[1751546511371,9.68331557,152.57,152.51,2.2681]
[1751546511569,9.68331557,152.58,152.51,2.2681]
[1751546511758,9.68331557,152.6,152.54,6.5531]
[1751546511957,2.2162,152.64,152.55,225.78]
[1751546512159,6.5498,152.63,152.59,6.5511]
[1751546512360,11.92171557,152.68,152.57,9.68331557]
[1751546512560,2.2384,152.68,152.59,9.68331557]
[1751546512762,2.3399,152.7,152.62,9.68331557]
[1751546512958,2.3399,152.7,152.62,284.3]
[1751546513369,6.5478,152.67,152.63,6.5492]
[1751546513667,2.3399,152.7,152.63,6.5492]
[1751546513868,6.5482,152.66,152.63,6.5492]
[1751546514059,2.3399,152.7,152.62,58.54]
[1751546514259,210.81664421,152.69,152.62,284.28]
[1751546514664,210.81664421,152.69,152.62,290.8296]
[1751546515061,210.81664421,152.69,152.62,284.28]
[1751546515261,210.81664421,152.69,152.62,290.8298]
[1751546515460,201.13332864,152.69,152.62,284.28]
[1751546515658,201.13332864,152.69,152.64,6.5487]
[1751546515866,201.13332864,152.69,152.62,284.28]
[1751546516068,9.68331557,152.73,152.62,293.96331557]
[1751546516264,9.68331557,152.73,152.66,6.5481]
[1751546516469,6.5468,152.7,152.62,293.96331557]
[1751546516664,9.68331557,152.73,152.62,293.96331557]
[1751546517366,9.68331557,152.73,152.62,284.28]
[1751546517567,6.5468,152.7,152.63,9.68331557]
[1751546517769,6.5468,152.7,152.64,2.144]
[1751546517966,9.68331557,152.73,152.64,2.144]
[1751546518169,12.02481557,152.75,152.65,9.68331557]
[1751546518474,2.3415,152.75,152.69,6.5467]
[1751546518674,2.3415,152.75,152.69,225.62]
[1751546518878,11.98501557,152.79,152.69,225.62]
[1751546519172,6.5455,152.73,152.7,2.1619]
[1751546519366,9.68331557,152.77,152.7,2.1619]
[1751546519873,9.68331557,152.77,152.7,8.7083]
[1751546520376,6.545,152.74,152.71,6.546]
[1751546520568,9.68331557,152.77,152.7,2.1619]
[1751546520965,9.68331557,152.77,152.71,6.546]
[1751546521475,6.5451,152.74,152.7,8.7082]
[1751546521674,9.68331557,152.77,152.7,2.1619]
[1751546521972,9.68331557,152.71,152.65,65.0883]
[1751546522173,9.68331557,152.73,152.65,60.7335]
[1751546522374,6.5464,152.71,152.65,286.2135]
[1751546522568,9.68331557,152.73,152.65,286.2135]
[1751546523080,9.68331557,152.73,152.65,292.7619]
[1751546523679,6.5471,152.69,152.65,292.7619]
[1751546523869,9.68331557,152.69,152.65,58.54]
[1751546524075,2.2736,152.72,152.65,58.54]
[1751546524273,9.68331557,152.7,152.65,58.54]
[1751546524777,9.68331557,152.72,152.65,58.54]
[1751546525079,6.5463,152.71,152.65,58.54]
[1751546525673,9.68331557,152.74,152.65,58.54]
[1751546526075,2.2736,152.76,152.65,58.54]
[1751546526274,11.95691557,152.76,152.65,58.54]
[1751546526470,11.95691557,152.76,152.69,6.5466]
[1751546526782,9.68331557,152.74,152.68,225.34]
[1751546526971,2.2736,152.76,152.68,225.34]
[1751546527171,9.68331557,152.73,152.68,225.34]
[1751546527676,9.68331557,152.77,152.68,235.02331557]
[1751546527877,11.98501557,152.79,152.69,4.4672]
[1751546528065,11.98501557,152.79,152.69,6.818]
[1751546528273,9.68331557,152.81,152.7,9.68331557]
[1751546528579,9.68331557,152.79,152.71,58.54]
[1751546528880,9.68331557,152.73,152.69,2.2696]
[1751546529477,9.68331557,152.73,152.67,624.34]
[1751546530376,9.68331557,152.73,152.67,849.54]
[1751546530677,2.34,152.77,152.67,849.54]
[1751546530979,9.68331557,152.76,152.67,849.54]
[1751546531478,6.5456,152.73,152.7,6.5462]
[1751546531680,9.68331557,152.76,152.67,849.54]
[1751546532474,6.5461,152.71,152.67,849.54]
[1751546532677,9.68331557,152.74,152.67,849.54]
[1751546532875,9.68331557,152.69,152.61,58.54]
[1751546533079,9.68331557,152.67,152.61,58.54]
[1751546534186,6.5499,152.62,152.61,58.54]
[1751546534387,9.68331557,152.63,152.6,2.3357]
[1751546534578,9.68331557,152.63,152.57,624.26]
[1751546534780,6.5516,152.59,152.57,624.26]
[1751546534978,9.68331557,152.63,152.57,624.26]
[1751546535291,6.5514,152.59,152.57,624.26]
[1751546535486,9.68331557,152.63,152.57,624.26]
[1751546535979,6.5516,152.58,152.57,624.26]
[1751546536173,9.68331557,152.63,152.57,624.26]
[1751546536574,9.68331557,152.63,152.57,58.54]
[1751546537089,6.5516,152.58,152.57,58.54]
[1751546538479,9.68331557,152.6,152.55,4.4849]
[1751546538480,6.5525,152.56,152.55,4.4849]
[1751546538676,9.68331557,152.6,152.53,58.54]
[1751546539589,6.553,152.55,152.53,58.54]
[1751546540086,6.5526,152.56,152.53,58.54]
[1751546540279,9.68331557,152.63,152.53,58.54]
[1751546540483,9.68331557,152.65,152.54,6.08008883]
[1751546540681,9.68331557,152.65,152.57,6.5518]
[1751546540987,9.68331557,152.65,152.57,224.92]
[1751546541482,9.68331557,152.63,152.57,224.92]
[1751546541682,6.5529,152.56,152.53,58.54]
[1751546541887,9.68331557,152.59,152.53,58.54]
[1751546542287,6.5533,152.54,152.53,58.54]
[1751546543184,6.5546,152.51,152.5,4.5205]
[1751546543385,9.68331557,152.51,152.45,6.08008883]
[1751546543689,9.68331557,152.57,152.44,2.2373]
[1751546543690,9.68331557,152.48,152.44,2.2373]
[1751546544487,6.5572,152.46,152.44,2.2373]
[1751546544680,9.68331557,152.48,152.42,58.2]
[1751546544886,9.68331557,152.46,152.42,58.2]
[1751546545091,58.2,152.52,152.39,2.1685]
[1751546545092,9.68331557,152.44,152.39,2.1685]
[1751546547190,9.68331557,152.48,152.39,2.1685]
[1751546547686,6.5582,152.43,152.39,2.1685]
[1751546548391,9.68331557,152.47,152.39,2.1685]
[1751546548787,6.5565,152.47,152.43,6.5578]
[1751546549089,64.9586,152.54,152.39,2.1685]
[1751546549292,9.68331557,152.49,152.39,2.1685]
[1751546549481,9.68331557,152.51,152.4,9.68331557]
[1751546549883,64.9586,152.54,152.46,9.68331557]
[1751546549884,2.2436,152.54,152.46,9.68331557]
[1751546550191,9.68331557,152.59,152.48,9.68331557]
[1751546550381,9.68331557,152.59,152.5,6.5549]
[1751546550586,9.68331557,152.59,152.49,58.24]
[1751546550787,9.68331557,152.57,152.49,58.24]
[1751546551079,6.5533,152.55,152.49,58.24]
[1751546551282,2.25794512,152.56,152.49,58.24]
[1751546551492,9.68331557,152.59,152.49,58.24]
[1751546551688,9.68331557,152.57,152.49,58.24]
[1751546551989,2.25794512,152.6,152.47,6.7723]
[1751546551990,9.68331557,152.53,152.47,4.5048]
[1751546552189,9.68331557,152.51,152.45,58.24]
[1751546553094,6.5568,152.46,152.45,58.24]
[1751546553285,9.68331557,152.47,152.41,2.141]
[1751546553588,9.68331557,152.47,152.4,58.24]
[1751546553895,9.68331557,152.45,152.4,58.24]
[1751546554090,58.24,152.5,152.38,58.24]
[1751546554292,9.68331557,152.47,152.38,58.24]
[1751546554496,9.68331557,152.47,152.38,282.88]
[1751546555298,9.68331557,152.47,152.38,292.56331557]
[1751546555299,6.5575,152.45,152.38,292.56331557]
[1751546555692,6.5575,152.45,152.41,6.5586]
[1751546555893,6.5565,152.47,152.39,12.04231557]
[1751546556095,9.68331557,152.49,152.39,2.359]
[1751546556295,9.68331557,152.49,152.41,6.5586]
[1751546556999,58.24,152.5,152.42,6.5585]
[1751546557299,9.68331557,152.48,152.42,6.5585]
[1751546557493,6.5571,152.46,152.42,6.5585]
[1751546557696,6.5571,152.46,152.39,2.359]
[1751546557890,9.68331557,152.5,152.39,2.359]
[1751546558500,6.5579,152.44,152.39,2.359]
[1751546558690,9.68331557,152.48,152.39,2.359]
[1751546558896,9.68331557,152.52,152.41,9.68331557]
[1751546559204,4.5336,152.53,152.43,9.68331557]
[1751546559500,6.5558,152.49,152.44,58.26]
[1751546559700,4.5336,152.53,152.44,58.26]
[1751546559897,4.5336,152.53,152.44,60.6144]
[1751546560100,9.68331557,152.52,152.44,60.6144]
[1751546560300,9.68331557,152.52,152.45,6.5569]
[1751546560596,6.5563,152.48,152.45,6.5569]
[1751546560801,2.1715,152.54,152.48,6.5559]
[1751546561099,6.5536,152.54,152.48,9.68331557]
[1751546561297,14.22341557,152.58,152.49,2.2481]
[1751546561796,9.68331557,152.56,152.45,2.1702]
[1751546562000,4.5401,152.58,152.45,4.4183]
[1751546562001,9.68331557,152.54,152.45,4.4183]
[1751546562196,9.68331557,152.52,152.45,4.4183]
[1751546562598,9.68331557,152.54,152.47,6.5563]
[1751546563100,9.68331557,152.56,152.45,4.4183]
[1751546563302,9.68331557,152.52,152.45,4.4183]
[1751546563502,9.68331557,152.52,152.47,6.5562]
[1751546563697,6.5551,152.5,152.45,4.4183]
[1751546563898,9.68331557,152.54,152.45,4.4183]
[1751546564092,2.2084,152.58,152.45,14.10161557]
[1751546564293,9.68331557,152.6,152.47,9.68331557]
[1751546564600,9.68331557,152.62,152.55,6.5527]
[1751546564807,6.552,152.58,152.51,67.92331557]
[1751546565105,6.5976,152.63,152.51,282.6]
[1751546565106,9.68331557,152.6,152.51,282.6]
[1751546565492,9.68331557,152.58,152.51,282.6]
[1751546565696,6.5532,152.55,152.51,282.6]
[1751546565902,9.68331557,152.58,152.51,282.6]
[1751546566396,9.68331557,152.56,152.45,570.9183]
[1751546566601,6.5976,152.63,152.49,6.5553]
[1751546566602,9.68331557,152.57,152.49,6.5553]
[1751546566800,9.68331557,152.55,152.46,67.92331557]
[1751546567000,6.5545,152.52,152.46,67.92331557]
[1751546567298,9.68331557,152.55,152.46,58.24]
[1751546567801,9.68331557,152.57,152.46,67.92331557]
[1751546567997,6.5976,152.63,152.5,9.68331557]
[1751546568203,9.68331557,152.61,152.54,6.5533]
[1751546568406,6.5976,152.63,152.52,67.92331557]
[1751546568593,4.3154,152.63,152.52,67.92331557]
[1751546568901,4.3154,152.63,152.56,6.5522]
[1751546569211,4.3154,152.63,152.57,6.552]
[1751546569406,9.68331557,152.64,152.54,9.68331557]
[1751546569707,9.68331557,152.66,152.57,6.5519]
[1751546570107,6.5511,152.6,152.57,6.5519]
[1751546570507,9.68331557,152.66,152.54,9.68331557]
[1751546570711,6.5506,152.61,152.54,9.68331557]
[1751546570908,9.68331557,152.67,152.56,9.68331557]
[1751546571101,9.68331557,152.67,152.57,224.12]
[1751546571102,6.5498,152.63,152.57,224.12]
[1751546571297,6.5498,152.63,152.58,57.86]
[1751546571497,6.5498,152.63,152.58,60.0827]
[1751546571705,6.5492,152.64,152.6,6.5505]
[1751546571905,9.68331557,152.67,152.6,6.5505]
[1751546572106,9.68331557,152.69,152.58,69.76601557]
[1751546572407,6.5494,152.64,152.61,6.55]
[1751546572609,9.68331557,152.69,152.61,6.55]
[1751546572810,9.68331557,152.69,152.62,6.5497]
[1751546573009,4.5688,152.7,152.6,9.68331557]
[1751546573208,4.5688,152.7,152.61,2.3294]
[1751546573406,6.5494,152.64,152.61,2.3294]
[1751546573606,9.68331557,152.69,152.61,2.3294]
[1751546573804,6.5489,152.65,152.61,2.3294]
[1751546574203,57.86,152.74,152.62,9.68331557]
[1751546574407,2.1709,152.74,152.64,9.68331557]
[1751546574606,2.1709,152.74,152.68,6.5472]
[1751546574814,2.1709,152.74,152.65,60.0227]
[1751546575113,2.1709,152.74,152.68,6.5473]
[1751546575315,2.1709,152.74,152.66,223.96]
[1751546575508,2.1709,152.74,152.67,9.68331557]
[1751546575509,6.5451,152.74,152.67,9.68331557]
[1751546576015,6.5445,152.75,152.67,9.68331557]
[1751546576210,11.85421557,152.8,152.72,6.5454]
[1751546576410,11.85421557,152.8,152.72,64.3854]
[1751546576610,11.85421557,152.8,152.72,57.84]
[1751546576912,2.1709,152.8,152.74,6.5447]
[1751546577213,9.68331557,152.82,152.74,6.5447]
[1751546577407,9.68331557,152.82,152.73,2.183]
[1751546577809,6.5441,152.76,152.73,2.183]
[1751546578016,9.68331557,152.82,152.73,2.183]
[1751546578312,60.1308,152.84,152.73,2.183]
[1751546578513,9.68331557,152.8,152.7,2.3519]
[1751546578716,6.5449,152.74,152.7,2.3519]
[1751546578908,2.2708,152.84,152.7,2.3519]
[1751546579109,6.43697746,152.84,152.73,9.68331557]
[1751546579415,2.2708,152.84,152.75,9.68331557]
[1751546579709,2.2708,152.84,152.75,57.82]
[1751546580616,9.68331557,152.81,152.75,57.82]
[1751546580804,9.68331557,152.8,152.75,57.82]
[1751546581008,2.2708,152.84,152.75,57.82]
[1751546581314,11.95411557,152.84,152.75,57.82]
[1751546581715,11.95411557,152.84,152.76,6.5438]
[1751546581912,11.95411557,152.84,152.75,57.82]
[1751546581913,9.68331557,152.82,152.75,57.82]
[1751546582113,9.68331557,152.8,152.73,2.165]
[1751546582508,6.5442,152.76,152.73,2.165]
[1751546582704,9.68331557,152.8,152.73,2.165]
[1751546583110,9.68331557,152.82,152.73,2.165]
[1751546583320,2.2708,152.84,152.73,2.165]
[1751546583515,9.68331557,152.82,152.73,2.165]
[1751546584209,2.2708,152.84,152.73,2.165]
[1751546584419,9.68331557,152.82,152.73,2.165]
[1751546584716,6.543,152.79,152.75,6.5443]
[1751546585116,9.68331557,152.82,152.73,2.165]
[1751546585316,6.5424,152.8,152.73,2.165]
[1751546585512,2.2708,152.84,152.74,9.68331557]
[1751546585713,2.2708,152.84,152.76,9.68331557]
[1751546586018,9.68331557,152.87,152.77,57.8]
[1751546586214,9.68331557,152.87,152.78,2.3118]
[1751546587113,6.8747,152.91,152.78,2.3118]
[1751546587323,6.8747,152.91,152.8,9.68331557]
[1751546587510,6.5393,152.87,152.83,6.5407]
[1751546587712,16.55801557,152.91,152.83,57.8]
[1751546587913,6.5388,152.88,152.85,6.5398]
[1751546588114,6.8747,152.91,152.85,6.5398]
[1751546588308,6.8747,152.91,152.83,57.8]
[1751546588512,57.8,152.95,152.84,9.68331557]
[1751546588722,16.30741557,152.98,152.87,9.68331557]
[1751546588912,9.68331557,152.97,152.87,223.26]
[1751546589113,9.68331557,152.97,152.89,6.5379]
[1751546589421,9.68331557,152.97,152.89,57.78]
[1751546589615,6.536,152.95,152.89,57.78]
[1751546589818,6.6241,152.98,152.89,57.78]
[1751546590215,9.68331557,152.95,152.89,57.78]
[1751546590512,9.68331557,152.91,152.83,57.78]
[1751546590712,9.68331557,152.91,152.84,6.5404]
[1751546591018,64.4041,152.98,152.83,57.78]
[1751546591225,9.68331557,152.94,152.83,57.78]
[1751546591624,9.68331557,152.92,152.83,57.78]
[1751546592225,6.539,152.88,152.84,6.5405]
[1751546592819,6.5385,152.89,152.85,6.5398]
[1751546593219,9.68331557,152.94,152.83,57.78]
[1751546593424,9.68331557,152.95,152.84,9.68331557]
[1751546593718,9.68331557,152.95,152.83,57.78]
[1751546593719,9.68331557,152.93,152.83,57.78]
[1751546593920,6.539,152.88,152.84,6.5404]
[1751546594322,9.68331557,152.93,152.83,57.78]
[1751546594518,6.5385,152.89,152.83,57.78]
[1751546594922,9.68331557,152.93,152.83,57.78]
[1751546595125,6.539,152.88,152.85,6.5398]
[1751546595621,6.5394,152.87,152.84,6.5403]
[1751546595922,64.4041,152.98,152.83,57.78]
[1751546595923,9.68331557,152.89,152.83,57.78]
[1751546596119,9.68331557,152.89,152.83,64.3207]
[1751546596427,13.0706,152.97,152.83,57.78]
[1751546596627,6.5393,152.87,152.84,6.5402]
[1751546596826,9.68331557,152.91,152.84,6.5402]
[1751546597127,9.68331557,152.91,152.83,57.78]
[1751546597830,6.5385,152.89,152.83,57.78]
[1751546598027,9.68331557,152.93,152.83,57.78]
[1751546598225,6.5393,152.87,152.84,6.5404]
[1751546598926,6.539,152.88,152.84,6.5404]
[1751546599131,13.0706,152.97,152.83,57.78]
[1751546599320,9.68331557,152.94,152.83,67.46331557]
[1751546599524,9.68331557,152.94,152.86,6.5394]
[1751546599721,9.68331557,152.94,152.83,67.46331557]
[1751546600022,9.68331557,152.9,152.83,57.38]
[1751546600222,2.1738,152.89,152.83,57.38]
[1751546600630,9.68331557,152.92,152.83,57.38]
[1751546600831,9.68331557,152.93,152.83,67.06331557]
[1751546601032,6.5382,152.9,152.86,6.5393]
[1751546601232,9.68331557,152.95,152.86,6.5393]
[1751546601432,9.68331557,152.93,152.83,67.06331557]
[1751546601732,9.68331557,152.93,152.85,6.5398]
[1751546602428,9.68331557,152.93,152.86,6.5395]
[1751546602628,6.5382,152.9,152.83,67.06331557]
[1751546602828,9.68331557,152.93,152.83,67.06331557]
[1751546603029,9.68331557,152.93,152.85,6.5399]
[1751546603231,9.68331557,152.91,152.82,2.3652]
[1751546603533,2.1738,152.96,152.83,279.98]
[1751546603735,9.68331557,152.95,152.85,9.68331557]
[1751546603931,9.68331557,152.95,152.88,6.5384]
[1751546605028,9.68331557,152.93,152.83,57.36]
[1751546605233,9.68331557,152.93,152.84,222.54]
[1751546605428,6.539,152.88,152.85,6.5397]
[1751546605735,9.68331557,152.91,152.82,282.2452]
[1751546605933,6.539,152.88,152.83,222.52]
[1751546606238,9.68331557,152.93,152.83,222.52]